bitfinex-derivatives/quotes_SOLF0:USTF0_20241105
["timestamp","ask_amount","ask_price","bid_price","bid_amount"]
[1730766573675,15.12967867,158.8,158.72,1.3425]
[1730766573873,3.4,158.79,158.72,1.3425]
[1730766578476,3.4,158.78,158.72,1.3425]
[1730766583276,3.4,158.78,158.7,1.361]
[1730766587091,3.4,158.78,158.69,15.12967867]
[1730766587490,3.4,158.78,158.72,15.12967867]
[1730766587985,1.3401,158.79,158.72,15.12967867]
[1730766589289,1.3401,158.79,158.74,9.68495749]
[1730766591490,11.02505749,158.79,158.73,9.68495749]
[1730766592887,13.08495749,158.8,158.74,9.68495749]
[1730766594197,1.4187,158.84,158.77,9.68495749]
[1730766594198,9.68495749,158.83,158.77,9.68495749]
[1730766594500,9.68495749,158.82,158.76,9.68495749]
[1730766595188,9.68495749,158.82,158.73,4.08201704]
[1730766595397,9.68495749,158.8,158.74,9.68495749]
[1730766595600,9.68495749,158.78,158.72,9.68495749]
[1730766596400,9.68495749,158.78,158.72,13.76697453]
[1730766596601,9.68495749,158.78,158.72,9.68495749]
[1730766596797,9.68495749,158.78,158.72,13.76697453]
[1730766596996,9.68495749,158.78,158.72,9.68495749]
[1730766597296,9.68495749,158.78,158.72,13.76697453]
[1730766597497,9.68495749,158.78,158.72,9.68495749]
[1730766597892,9.68495749,158.77,158.71,9.68495749]
[1730766600497,9.68495749,158.74,158.69,4.08201704]
[1730766600707,13.04495749,158.74,158.68,9.68495749]
[1730766601910,9.68495749,158.69,158.66,4.08359481]
[1730766602198,9.68495749,158.69,158.64,9.68495749]
[1730766603307,3.36,158.7,158.65,9.68495749]
[1730766604097,9.68495749,158.71,158.65,9.68495749]
[1730766604296,3.36,158.7,158.65,9.68495749]
[1730766604801,3.36,158.7,158.66,9.68495749]
[1730766604997,3.36,158.72,158.69,9.68495749]
[1730766605505,3.36,158.75,158.71,9.68495749]
[1730766607307,3.36,158.75,158.68,15.13965799]
[1730766608002,3.36,158.8,158.73,15.13965799]
[1730766613414,3.36,158.8,158.71,15.13965799]
[1730766613806,4.757,158.8,158.71,15.13965799]
[1730766614006,6.1751,158.8,158.71,15.13965799]
[1730766619302,6.1751,158.8,158.73,15.13965799]
[1730766619717,6.1751,158.8,158.71,15.13965799]
[1730766620808,7.4883,158.8,158.71,15.13965799]
[1730766625717,6.1751,158.8,158.71,15.13965799]
[1730766625914,3.36,158.79,158.71,15.13965799]
[1730766629320,3.36,158.79,158.74,9.68499931]
[1730766631124,9.68499931,158.78,158.72,9.68499931]
[1730766631724,9.68499931,158.76,158.71,9.68499931]
[1730766633126,9.68499931,158.78,158.72,9.68499931]
[1730766635524,9.68499931,158.75,158.69,9.68499931]
[1730766635721,3.36,158.74,158.69,9.68499931]
[1730766635915,9.68499931,158.73,158.68,9.68499931]
[1730766636125,3.36,158.74,158.69,9.68499931]
[1730766639531,3.36,158.74,158.71,9.68499931]
[1730766645725,9.68499931,158.73,158.69,9.68499931]
[1730766647236,9.68499931,158.73,158.68,9.68499931]
[1730766648123,9.68499931,158.7,158.66,10.99649931]
[1730766648436,9.68499931,158.71,158.67,13.76476127]
[1730766648631,9.68499931,158.71,158.67,9.68499931]
[1730766650332,3.36,158.74,158.7,9.68499931]
[1730766650527,9.68499931,158.73,158.69,9.68499931]
[1730766650738,9.68499931,158.72,158.67,9.68499931]
[1730766651437,9.68499931,158.72,158.67,13.76192954]
[1730766655235,9.68499931,158.72,158.67,13.76209884]
[1730766658741,9.68499931,158.72,158.67,9.68499931]
[1730766658938,9.68499931,158.74,158.69,9.68499931]
[1730766659246,3.36,158.75,158.71,9.68499931]
[1730766660344,9.68499931,158.78,158.71,9.68499931]
[1730766660556,3.36,158.77,158.71,9.68499931]
[1730766662850,9.68499931,158.76,158.71,9.68499931]
[1730766663961,3.36,158.75,158.71,9.68499931]
[1730766669868,9.68499931,158.82,158.74,9.68499931]
[1730766670160,3.36,158.82,158.78,9.68499931]
[1730766670362,11.07229931,158.85,158.78,9.68499931]
[1730766670561,3.36,158.84,158.78,9.68499931]
[1730766671363,9.68499931,158.83,158.78,9.68499931]
[1730766672663,9.68499931,158.85,158.79,9.68499931]
[1730766672863,3.36,158.85,158.81,9.68499931]
[1730766673063,3.36,158.86,158.82,9.68499931]
[1730766673264,4.0265,158.95,158.77,3.36]
[1730766673265,3.36,158.89,158.85,9.68499931]
[1730766673468,3.36,158.9,158.85,9.68499931]
[1730766674067,0.22257,158.91,158.85,9.68499931]
[1730766675371,9.90756931,158.91,158.85,9.68499931]
[1730766676767,0.22257,158.91,158.89,9.68499931]
[1730766678572,0.22257,158.91,158.9,9.68499931]
[1730766680561,9.68499931,158.97,158.9,9.68499931]
[1730766680767,9.68499931,158.99,158.93,9.68499931]
[1730766682377,9.68499931,158.97,158.92,9.68499931]
[1730766682571,9.68499931,158.97,158.9,2.6202]
[1730766682572,9.68499931,158.99,158.93,9.68499931]
[1730766684773,9.68499931,158.99,158.9,2.6202]
[1730766684774,13.04499931,159.0,158.94,9.68499931]
[1730766689373,9.68499931,159.03,158.97,9.68499931]
[1730766689573,3.36,159.02,158.97,9.68499931]
[1730766692177,9.68499931,159.03,158.97,9.68499931]
[1730766692369,12.46049931,159.04,158.98,9.68499931]
[1730766692575,3.36,159.04,159.0,9.68499931]
[1730766692982,9.68499931,159.04,158.98,9.68499931]
[1730766693783,13.04499931,159.05,159.0,9.68499931]
[1730766695281,9.68499931,159.05,159.0,9.68499931]
[1730766701183,9.68499931,159.02,158.97,9.68499931]
[1730766701684,4.6488,159.06,159.0,9.68499931]
[1730766701685,14.33379931,159.06,159.0,9.68499931]
[1730766702685,4.6488,159.06,159.01,9.68499931]
[1730766705184,3.36,159.06,159.01,9.68499931]
[1730766705391,3.36,159.06,159.03,9.68499931]
[1730766706289,3.36,159.06,159.02,9.68499931]
[1730766712797,9.68499931,159.07,159.02,9.68499931]
[1730766713691,9.68499931,159.06,159.0,9.68499931]
[1730766713887,12.33929931,159.06,159.0,9.68499931]
[1730766714286,9.68499931,159.04,158.98,9.68499931]
[1730766714489,3.36,159.03,158.99,9.68499931]
[1730766714688,6.0143,159.06,159.01,9.68499931]
[1730766716492,3.36,159.06,159.01,9.68499931]
[1730766717695,3.36,159.07,159.03,9.68499931]
[1730766720599,13.04499931,159.08,159.03,9.68499931]
[1730766722204,4.0028,159.14,159.06,9.68499931]
[1730766722205,9.68499931,159.12,159.06,9.68499931]
[1730766722598,13.02499931,159.12,159.06,9.68499931]
[1730766723205,13.02499931,159.12,159.05,9.68499931]
[1730766723397,9.68499931,159.09,159.03,9.68499931]
[1730766723705,3.34,159.08,159.03,9.68499931]
[1730766724309,9.68499931,159.07,159.02,9.68499931]
[1730766724609,9.68499931,159.05,159.0,9.68499931]
[1730766725109,9.68499931,159.07,159.01,9.68499931]
[1730766725504,4.6448,159.08,159.03,9.68499931]
[1730766725903,3.34,159.08,159.05,9.68499931]
[1730766726903,3.34,159.11,159.06,9.68499931]
[1730766731011,3.34,159.11,158.95,3.09494292]
[1730766731306,1.3379,159.13,158.89,9.68499931]
[1730766731307,9.68499931,158.96,158.89,9.68499931]
[1730766731508,20.2579,159.13,158.87,9.68499931]
[1730766731509,9.68499931,158.93,158.87,9.68499931]
[1730766732099,3.34,158.92,158.88,9.68499931]
[1730766732405,3.34,158.92,158.86,4.1012]
[1730766732406,3.34,158.92,158.87,9.68499931]
[1730766732609,9.68499931,158.94,158.88,9.68499931]
[1730766732910,3.34,158.93,158.88,9.68499931]
[1730766733299,3.34,158.93,158.9,9.68499931]
[1730766733504,3.34,158.93,158.88,9.68499931]
[1730766733906,9.68499931,158.94,158.88,9.68499931]
[1730766734108,3.34,158.93,158.88,9.68499931]
[1730766734306,9.68499931,158.95,158.88,9.68499931]
[1730766734505,3.34,158.94,158.88,9.68499931]
[1730766736208,9.68499931,158.93,158.87,9.68499931]
[1730766736410,3.34,158.92,158.9,9.68499931]
[1730766736915,3.34,158.92,158.88,9.68499931]
[1730766737306,9.68499931,158.94,158.88,9.68499931]
[1730766737508,3.34,158.93,158.9,9.68499931]
[1730766737817,3.34,158.93,158.88,9.68499931]
[1730766739808,3.34,158.93,158.9,9.68499931]
[1730766740713,3.34,158.95,158.92,9.68499931]
[1730766740912,3.34,158.95,158.9,9.68499931]
[1730766741912,9.68499931,158.94,158.88,9.68499931]
[1730766742118,13.02499931,158.95,158.9,9.68499931]
[1730766742414,3.34,158.95,158.9,9.68499931]
[1730766742808,3.34,158.95,158.91,1.3361]
[1730766743210,9.68499931,158.98,158.93,9.68499931]
[1730766743516,3.34,158.98,158.95,9.68499931]
[1730766744104,13.02499931,158.98,158.93,9.68499931]
[1730766745810,3.34,158.97,158.94,9.68499931]
[1730766746916,3.34,158.97,158.93,9.68499931]
[1730766751113,9.68499931,158.99,158.93,9.68499931]
[1730766751314,3.34,158.98,158.93,9.68499931]
[1730766752110,9.68499931,158.97,158.91,11.02109931]
[1730766753707,9.68499931,158.94,158.88,11.02259931]
[1730766753921,3.34,158.93,158.88,11.02259931]
[1730766754520,9.68499931,158.92,158.87,1.425]
[1730766754910,3.34,158.93,158.88,9.68499931]
[1730766756317,9.68499931,158.92,158.86,9.68499931]
[1730766757218,9.68499931,158.9,158.85,13.7332802]
[1730766757415,3.34,158.89,158.85,13.7332802]
[1730766757613,3.34,158.89,158.85,9.68499931]
[1730766758818,11.08999931,158.96,158.88,9.68499931]
[1730766759119,3.34,158.95,158.89,9.68499931]
[1730766759314,9.68499931,158.94,158.89,9.68499931]
[1730766761417,9.68499931,158.94,158.88,9.68499931]
[1730766763624,9.68499931,158.89,158.83,9.68499931]
[1730766763826,9.68499931,158.87,158.83,9.68499931]
[1730766764018,3.34,158.86,158.83,9.68499931]
[1730766764219,3.34,158.86,158.81,9.68499931]
[1730766764421,13.02499931,158.86,158.81,9.68499931]
[1730766764624,3.34,158.86,158.81,9.68499931]
[1730766765720,9.68499931,158.86,158.81,9.68499931]
[1730766765921,3.34,158.85,158.81,9.68499931]
[1730766766323,9.68499931,158.88,158.81,9.68499931]
[1730766766622,3.34,158.85,158.81,9.68499931]
[1730766768230,13.02499931,158.85,158.8,11.09949931]
[1730766768831,13.02499931,158.85,158.8,9.68499931]
[1730766769135,13.02499931,158.85,158.78,9.68499931]
[1730766770431,9.68499931,158.83,158.78,9.68499931]
[1730766771018,13.02499931,158.85,158.78,9.68499931]
[1730766771328,3.34,158.84,158.81,9.68499931]
[1730766772029,3.34,158.84,158.79,9.68499931]
[1730766772730,3.34,158.83,158.79,9.68499931]
[1730766773531,3.34,158.83,158.81,9.68499931]
[1730766773829,9.68499931,158.86,158.82,9.68499931]
[1730766773830,3.34,158.86,158.82,9.68499931]
[1730766774037,3.34,158.86,158.84,9.68499931]
[1730766774233,3.34,158.86,158.83,9.68499931]
[1730766775434,3.34,158.86,158.8,15.11852443]
[1730766776525,3.34,158.86,158.78,15.11852443]
[1730766778235,15.11852443,158.83,158.74,15.11852443]
[1730766778435,3.34,158.82,158.74,15.11852443]
[1730766783533,3.34,158.82,158.72,15.11852443]
[1730766783739,1.3766,158.81,158.72,15.11852443]
[1730766784836,16.49512443,158.81,158.72,15.11852443]
[1730766788538,16.49512443,158.81,158.7,15.11852443]
[1730766788737,15.11852443,158.79,158.7,15.11852443]
[1730766788939,3.34,158.78,158.67,15.11852443]
[1730766790438,3.34,158.78,158.69,15.11852443]
[1730766791138,16.49512443,158.81,158.69,15.11852443]
[1730766791341,16.49512443,158.81,158.66,2.6669]
[1730766791342,3.34,158.8,158.71,15.11852443]
[1730766791646,16.49512443,158.81,158.72,4.1957]
[1730766791846,3.34,158.8,158.72,4.1957]
[1730766793431,1.3107,158.82,158.74,15.11852443]
[1730766793635,19.79532443,158.85,158.76,15.11852443]
[1730766794245,15.11852443,158.87,158.76,15.11852443]
[1730766794433,18.45852443,158.87,158.78,15.11852443]
[1730766794639,3.34,158.87,158.79,2.6829]
[1730766795446,9.67736091,158.86,158.8,9.67736091]
[1730766797547,3.34,158.87,158.79,2.6829]
[1730766807250,15.12239079,158.85,158.76,3.34]
[1730766808153,1.3377,158.86,158.76,3.34]
[1730766809852,15.12239079,158.88,158.77,15.12239079]
[1730766812956,15.12239079,158.88,158.77,18.46239079]
[1730766813852,15.12239079,158.86,158.77,18.46239079]
[1730766815552,15.12239079,158.86,158.77,15.12239079]
[1730766815759,3.34,158.85,158.76,3.34]
[1730766818656,3.34,158.85,158.75,15.12239079]
[1730766819257,9.68192152,158.83,158.77,9.68192152]
[1730766820463,11.07862152,158.84,158.78,9.68192152]
[1730766823263,13.02192152,158.85,158.8,9.68192152]
[1730766824067,9.68192152,158.88,158.81,9.68192152]
[1730766824268,13.02192152,158.88,158.81,9.68192152]
[1730766826655,1.3884,158.92,158.81,9.68192152]
[1730766826656,1.3884,158.92,158.81,3.34]
[1730766826860,14.41542152,158.93,158.87,9.68192152]
[1730766827055,13.02192152,158.93,158.87,9.68192152]
[1730766827767,9.68192152,158.91,158.86,9.68192152]
[1730766829359,18.4521843,158.93,158.83,15.1121843]
[1730766838173,3.34,158.93,158.83,15.1121843]
[1730766838370,3.34,158.93,158.85,15.1121843]
[1730766841676,3.9409,158.95,158.85,15.1121843]
[1730766841677,3.34,158.94,158.85,15.1121843]
[1730766843270,15.1121843,158.96,158.87,15.1121843]
[1730766843575,15.1121843,159.04,158.89,15.1121843]
[1730766843576,3.34,158.97,158.89,15.1121843]
[1730766843778,15.1121843,158.97,158.87,18.4521843]
[1730766843982,15.1121843,158.95,158.86,3.34]
[1730766844283,3.34,158.94,158.83,18.4521843]
[1730766847974,15.1121843,158.93,158.82,7.4431]
[1730766848168,15.1121843,158.9,158.82,4.1031]
[1730766848373,18.4521843,158.9,158.82,4.1031]
[1730766849777,18.4521843,158.93,158.83,15.1121843]
[1730766849995,1.3497,158.95,158.86,15.1121843]
[1730766850283,1.2915,158.96,158.88,15.1121843]
[1730766850588,4.6315,158.96,158.88,15.1121843]
[1730766851686,3.34,158.96,158.88,15.1121843]
[1730766851894,3.34,158.96,158.9,15.1121843]
[1730766852880,3.34,159.0,158.92,15.1121843]
[1730766853081,3.34,159.01,158.92,15.1121843]
[1730766853285,3.34,159.01,158.97,9.6711656]
[1730766853985,13.0111656,159.01,158.95,9.6711656]
[1730766854375,9.6711656,159.01,158.95,9.6711656]
[1730766855382,9.6711656,158.99,158.92,9.6711656]
[1730766855688,9.6711656,158.99,158.94,9.6711656]
[1730766856388,9.6711656,158.99,158.92,9.6711656]
[1730766856582,3.34,158.98,158.92,9.6711656]
[1730766856791,9.6711656,158.97,158.91,9.6711656]
[1730766857275,3.34,158.98,158.89,22.60192012]
[1730766858087,3.34,158.98,158.89,19.26192012]
[1730766859687,3.34,158.98,158.91,15.12142012]
[1730766863991,3.34,158.98,158.89,4.1405]
[1730766864184,3.34,158.98,158.89,22.60192012]
[1730766868586,3.34,158.98,158.89,19.26192012]
[1730766871893,15.12142012,158.99,158.89,19.26192012]
[1730766872190,3.34,158.98,158.91,15.12142012]
[1730766875202,3.34,158.98,158.89,19.26192012]
[1730766877292,9.67769255,158.97,158.91,9.67769255]
[1730766881600,9.67769255,158.98,158.92,9.67769255]
[1730766882098,9.67769255,158.99,158.94,9.67769255]
[1730766882691,9.67769255,159.02,158.97,9.67769255]
[1730766882900,9.67769255,159.04,158.99,9.67769255]
[1730766883107,13.01769255,159.06,159.0,9.67769255]
[1730766883295,3.34,159.06,159.02,9.67769255]
[1730766883502,3.34,159.06,159.03,9.67769255]
[1730766884399,9.67769255,159.09,159.03,9.67769255]
[1730766884595,3.34,159.09,159.05,9.67769255]
[1730766884899,9.67769255,159.1,159.05,9.67769255]
[1730766885299,3.34,159.1,159.02,15.09630259]
[1730766885501,3.34,159.1,159.03,2.6667]
[1730766885698,3.34,159.1,159.03,4.0837]
[1730766886990,18.43630259,159.1,159.03,4.0837]
[1730766888004,18.43630259,159.1,159.0,15.09630259]
[1730766890508,15.09630259,159.1,159.0,15.09630259]
[1730766895413,15.09630259,159.17,159.08,15.09630259]
[1730766895609,2.6193,159.23,159.12,15.09630259]
[1730766895816,3.34,159.22,159.12,15.09630259]
[1730766896023,4.43847721,159.22,159.12,15.09630259]
[1730766896311,1.09847721,159.21,159.12,15.09630259]
[1730766897214,15.09630259,159.2,159.09,15.09630259]
[1730766900809,15.09630259,159.2,159.01,1.0]
[1730766900810,15.09630259,159.16,159.07,15.09630259]
[1730766901017,15.09630259,159.14,159.04,15.09630259]
[1730766901320,3.34,159.13,159.04,15.09630259]
[1730766902318,3.34,159.13,159.01,1.2974]
[1730766902518,15.09630259,159.07,159.01,1.2974]
[1730766902717,3.32,159.06,159.01,1.2974]
[1730766903826,3.32,159.06,158.98,15.09630259]
[1730766905413,3.32,159.06,158.95,1.3946]
[1730766905414,3.32,159.06,158.96,15.09630259]
[1730766906922,15.09630259,159.09,158.98,15.09630259]
[1730766907325,3.32,159.08,158.98,15.09630259]
[1730766909214,15.09630259,159.09,158.98,15.09630259]
[1730766909416,16.47530259,159.12,159.0,15.09630259]
[1730766909729,16.47530259,159.12,159.02,15.09630259]
[1730766909730,3.32,159.11,159.02,15.09630259]
[1730766909928,3.32,159.11,159.03,1.2852]
[1730766910928,3.32,159.1,159.03,1.2852]
[1730766916732,3.32,159.1,159.02,1.4057]
[1730766916933,15.09630259,159.09,159.01,1.4086]
[1730766917132,15.09630259,159.09,158.99,1.4066]
[1730766921132,15.09630259,159.05,158.94,17.84230259]
[1730766921327,3.32,159.04,158.94,17.84230259]
[1730766921827,3.32,159.04,158.95,1.2863]
[1730766927533,9.67081316,159.03,158.97,9.67081316]
[1730766930034,9.67081316,159.03,158.95,1.2863]
[1730766930035,9.67081316,159.04,158.99,9.67081316]
[1730766930232,3.34,159.03,158.99,9.67081316]
[1730766930433,3.34,159.03,159.0,9.67081316]
[1730766933539,11.07421316,159.07,159.01,9.67081316]
[1730766933739,3.32,159.06,159.01,9.67081316]
[1730766933938,9.67081316,159.08,159.03,9.67081316]
[1730766934141,3.32,159.07,159.03,9.67081316]
[1730766934462,12.99081316,159.08,159.03,9.67081316]
[1730766935948,9.67081316,159.07,159.01,9.67081316]
[1730766937342,9.67081316,159.05,159.0,9.67081316]
[1730766937547,3.32,159.04,159.0,9.67081316]
[1730766939442,3.32,159.04,159.01,9.67081316]
[1730766940748,3.32,159.04,159.03,9.67081316]
[1730766941046,3.32,159.07,159.03,9.67081316]
[1730766942637,9.67081316,159.06,159.01,9.67081316]
[1730766944752,9.67081316,159.06,158.95,4.6063]
[1730766944753,9.67081316,159.06,158.99,9.67081316]
[1730766945750,9.67081316,159.04,158.99,9.67081316]
[1730766945949,12.99081316,159.03,158.98,9.67081316]
[1730766946146,3.32,159.02,158.96,9.67081316]
[1730766947348,3.32,159.02,158.95,1.2863]
[1730766951457,3.32,159.02,158.96,15.11158605]
[1730766955551,1.3735,159.08,158.99,15.11158605]
[1730766955760,3.32,159.07,158.99,15.11158605]
[1730766961649,2.6604,159.08,158.99,15.11158605]
[1730766961863,3.32,159.07,158.99,15.11158605]
[1730766967361,12.98521904,159.07,159.01,9.66521904]
[1730766968661,12.98521904,159.07,158.96,3.32]
[1730766968662,9.66521904,159.06,159.0,9.66521904]
[1730766969465,9.66521904,159.04,158.98,9.66521904]
[1730766969659,9.66521904,159.02,158.96,9.66521904]
[1730766969862,12.98521904,159.02,158.96,9.66521904]
[1730766970771,9.66521904,158.99,158.93,9.66521904]
[1730766970967,3.32,158.98,158.93,9.66521904]
[1730766971264,12.98521904,158.98,158.92,9.66521904]
[1730766972666,9.66521904,158.96,158.9,9.66521904]
[1730766973465,9.66521904,158.95,158.89,9.66521904]
[1730766973765,1.2844,159.0,158.86,4.1182]
[1730766973766,9.66521904,158.92,158.86,12.38581904]
[1730766973966,3.32,158.91,158.86,12.38581904]
[1730766975562,9.66521904,158.9,158.84,9.66521904]
[1730766975765,9.66521904,158.88,158.83,9.66521904]
[1730766975964,3.32,158.91,158.86,9.66521904]
[1730766976773,9.66521904,158.9,158.84,9.66521904]
[1730766978368,3.32,158.91,158.85,9.66521904]
[1730766978369,12.98521904,158.91,158.85,9.66521904]
[1730766980573,9.66521904,158.9,158.84,9.66521904]
[1730766980970,9.66521904,158.89,158.84,9.66521904]
[1730766981473,9.66521904,158.89,158.83,9.66521904]
[1730766981682,3.32,158.91,158.81,9.66521904]
[1730766981683,9.66521904,158.88,158.81,9.66521904]
[1730766981869,9.66521904,158.86,158.81,9.66521904]
[1730766982066,3.32,158.85,158.81,9.66521904]
[1730766982376,3.32,158.85,158.82,9.66521904]
[1730766984578,3.32,158.85,158.81,9.66521904]
[1730766986176,3.32,158.85,158.8,1.3472]
[1730766986983,3.32,158.85,158.81,9.66521904]
[1730766989571,3.32,158.85,158.8,1.3472]
[1730766989572,3.32,158.85,158.8,11.01241904]
[1730766991985,3.32,158.85,158.81,9.66521904]
[1730766997688,3.32,158.85,158.8,11.01241904]
[1730766999389,3.32,158.85,158.8,9.66521904]
[1730766999590,9.66521904,158.84,158.78,9.66521904]
[1730767004386,3.32,158.85,158.78,9.66521904]
[1730767004580,9.66521904,158.81,158.77,9.66521904]
[1730767004780,12.98521904,158.81,158.77,9.66521904]
[1730767008086,9.66521904,158.8,158.75,12.35601904]
[1730767009188,9.66521904,158.8,158.75,1.3876]
[1730767009392,9.66521904,158.78,158.73,9.66521904]
[1730767009604,12.98521904,158.77,158.72,9.66521904]
[1730767009989,12.98521904,158.77,158.71,1.3087]
[1730767009990,9.66521904,158.75,158.71,1.3087]
[1730767010189,9.66521904,158.74,158.69,9.66521904]
[1730767010391,3.32,158.73,158.69,9.66521904]
[1730767011193,3.32,158.73,158.67,9.66521904]
[1730767012501,9.66521904,158.72,158.67,9.66521904]
[1730767012695,9.66521904,158.7,158.66,1.3067]
[1730767017792,9.66521904,158.7,158.65,2.7783]
[1730767018199,9.66521904,158.69,158.65,2.7783]
[1730767019002,9.66521904,158.69,158.62,9.66521904]
[1730767019209,9.66521904,158.65,158.61,2.7982]
[1730767019409,9.66521904,158.64,158.61,1.4176]
[1730767020009,9.66521904,158.64,158.58,9.66521904]
[1730767021097,9.66521904,158.64,158.56,1.4176]
[1730767021098,9.66521904,158.62,158.56,11.08281904]
[1730767022503,9.66521904,158.64,158.58,9.66521904]
[1730767024009,12.98521904,158.66,158.61,9.66521904]
[1730767024200,9.66521904,158.65,158.59,9.66521904]
[1730767024407,9.66521904,158.63,158.58,9.66521904]
[1730767026615,9.66521904,158.63,158.59,9.66521904]
[1730767027413,9.66521904,158.61,158.56,9.66521904]
[1730767029305,9.66521904,158.61,158.55,1.415]
[1730767029507,3.32,158.62,158.57,9.66521904]
[1730767029717,12.98521904,158.63,158.57,9.66521904]
[1730767034222,3.32,158.63,158.58,9.66521904]
[1730767034416,3.32,158.63,158.55,4.58430138]
[1730767034417,3.32,158.63,158.6,9.66521904]
[1730767034618,3.32,158.63,158.59,9.66521904]
[1730767036128,9.66521904,158.62,158.58,9.66521904]
[1730767036522,9.66521904,158.64,158.59,9.66521904]
[1730767036826,12.98521904,158.64,158.59,9.66521904]
[1730767037226,9.66521904,158.63,158.57,9.66521904]
[1730767038016,12.98521904,158.64,158.57,9.66521904]
[1730767038426,12.98521904,158.67,158.61,9.66521904]
[1730767038621,9.66521904,158.67,158.62,9.66521904]
[1730767038825,9.66521904,158.67,158.6,9.66521904]
[1730767039025,9.66521904,158.66,158.6,9.66521904]
[1730767039225,9.66521904,158.66,158.59,9.66521904]
[1730767039533,9.66521904,158.63,158.57,9.66521904]
[1730767043030,3.32,158.64,158.59,9.66521904]
[1730767043220,9.66521904,158.66,158.6,9.66521904]
[1730767043726,9.66521904,158.65,158.59,9.66521904]
[1730767046437,9.66521904,158.63,158.57,9.66521904]
[1730767049031,9.66521904,158.66,158.6,9.66521904]
[1730767049236,12.98521904,158.66,158.6,9.66521904]
[1730767052929,12.98521904,158.66,158.56,9.66521904]
[1730767052930,9.66521904,158.62,158.56,9.66521904]
[1730767057139,12.98521904,158.62,158.56,9.66521904]
[1730767059446,9.66521904,158.6,158.56,9.66521904]
[1730767059647,9.66521904,158.59,158.54,9.66521904]
[1730767060149,9.66521904,158.58,158.53,10.99891904]
[1730767060643,9.66521904,158.58,158.52,9.66521904]
[1730767060842,9.66521904,158.56,158.52,9.66521904]
[1730767061342,9.66521904,158.56,158.5,9.66521904]
[1730767061544,9.66521904,158.55,158.49,11.06861904]
[1730767061752,9.66521904,158.53,158.48,30.67363107]
[1730767061940,9.66521904,158.52,158.46,9.66521904]
[1730767062748,9.66521904,158.52,158.47,9.66521904]
[1730767063753,9.66521904,158.53,158.47,9.66521904]
[1730767064455,2.6404,158.57,158.44,4.0099]
[1730767064456,9.66521904,158.55,158.49,9.66521904]
[1730767064646,12.98521904,158.55,158.49,9.66521904]
[1730767064960,3.32,158.55,158.51,9.66521904]
[1730767065461,9.66521904,158.56,158.52,9.66521904]
[1730767065959,10.99791904,158.57,158.52,9.66521904]
[1730767066262,9.66521904,158.57,158.52,9.66521904]
[1730767066463,3.32,158.58,158.53,9.66521904]
[1730767067859,9.66521904,158.57,158.52,9.66521904]
[1730767068862,9.66521904,158.57,158.53,9.66521904]
[1730767070564,9.66521904,158.57,158.51,9.66521904]
[1730767073867,9.66521904,158.57,158.53,9.66521904]
[1730767074467,3.32,158.58,158.53,9.66521904]
[1730767083875,9.66521904,158.59,158.53,9.66521904]
[1730767084070,12.98521904,158.59,158.53,9.66521904]
[1730767087468,3.32,158.61,158.56,9.66521904]
[1730767087668,9.66521904,158.63,158.58,9.66521904]
[1730767087870,9.66521904,158.66,158.61,9.66521904]
[1730767088063,9.66521904,158.66,158.62,9.66521904]
[1730767088779,9.66521904,158.66,158.6,9.66521904]
[1730767089568,9.66521904,158.63,158.58,9.66521904]
[1730767090574,9.66521904,158.62,158.56,9.66521904]
[1730767094470,9.66521904,158.6,158.54,9.66521904]
[1730767094676,9.66521904,158.57,158.51,9.66521904]
[1730767096275,9.66521904,158.56,158.5,9.66521904]
[1730767100775,3.32,158.55,158.5,9.66521904]
[1730767103580,9.66521904,158.56,158.5,9.66521904]
[1730767103778,12.98521904,158.57,158.51,9.66521904]
[1730767112398,9.66521904,158.57,158.51,9.66521904]
[1730767112583,12.98521904,158.57,158.51,9.66521904]
[1730767114490,9.66521904,158.56,158.51,9.66521904]
[1730767115489,3.32,158.57,158.51,9.66521904]
[1730767119287,9.66521904,158.59,158.53,9.66521904]
[1730767119494,3.32,158.58,158.54,9.66521904]
[1730767120495,3.32,158.58,158.53,9.66521904]
[1730767120796,12.98521904,158.58,158.53,9.66521904]
[1730767122110,9.66521904,158.55,158.49,12.39131904]
[1730767122403,9.66521904,158.55,158.49,9.66521904]
[1730767124601,3.32,158.54,158.49,9.66521904]
[1730767128505,9.66521904,158.55,158.49,9.66521904]
[1730767128700,12.98521904,158.55,158.49,9.66521904]
[1730767129501,3.32,158.55,158.51,9.66521904]
[1730767129707,3.32,158.55,158.52,9.66521904]